bitfinex/quotes_SOLUSD_20250612
["timestamp","ask_amount","ask_price","bid_price","bid_amount"]
[1749706853283,13.78877074,159.54,159.5,13.78877074]
[1749706855387,13.78877074,159.55,159.5,13.78877074]
[1749706857181,39.78877074,159.56,159.51,13.78877074]
[1749706857487,13.78877074,159.55,159.51,13.78877074]
[1749706858498,13.78877074,159.55,159.49,5.4]
[1749706858783,13.78877074,159.55,159.51,13.78877074]
[1749706859260,13.78877074,159.55,159.5,13.78877074]
[1749706860963,13.78877074,159.53,159.49,19.18877074]
[1749706861158,13.78877074,159.53,159.49,5.4]
[1749706861406,13.78877074,159.51,159.49,5.4]
[1749706861686,13.78877074,159.52,159.49,5.4]
[1749706863167,39.78877074,159.53,159.49,5.4]
[1749706863384,13.78877074,159.54,159.5,13.78877074]
[1749706863707,39.78877074,159.55,159.5,13.78877074]
[1749706865111,13.78877074,159.54,159.5,13.78877074]
[1749706865983,26.0,159.55,159.5,13.78877074]
[1749706866205,13.78877074,159.54,159.49,5.4]
[1749706866393,13.78877074,159.54,159.49,19.18877074]
[1749706867696,39.78877074,159.55,159.51,13.78877074]
[1749706868005,39.78877074,159.58,159.53,13.78877074]
[1749706868209,162.88877074,159.59,159.54,13.78877074]
[1749706868392,39.78877074,159.59,159.54,13.78877074]
[1749706868783,13.78877074,159.58,159.54,13.78877074]
[1749706868983,13.78877074,159.58,159.53,39.24877074]
[1749706869284,26.0,159.58,159.55,13.78877074]
[1749706869498,26.0,159.58,159.56,13.78877074]
[1749706869923,26.0,159.58,159.55,13.78877074]
[1749706870711,26.0,159.58,159.56,5.4]
[1749706871780,13.78877074,159.59,159.56,5.4]
[1749706876218,13.78877074,159.58,159.56,5.4]
[1749706876894,26.0,159.58,159.56,5.4]
[1749706877288,4.66698275,159.62,159.57,13.78877074]
[1749706877493,6.297,159.64,159.59,13.78877074]
[1749706877713,13.78877074,159.63,159.59,13.78877074]
[1749706878110,39.78877074,159.63,159.59,13.78877074]
[1749706878694,13.78877074,159.62,159.58,25.44]
[1749706878914,39.78877074,159.62,159.58,25.44]
[1749706879509,13.78877074,159.61,159.58,25.44]
[1749706879711,13.78877074,159.59,159.58,25.44]
[1749706880010,13.78877074,159.59,159.56,5.4]
[1749706881915,13.78877074,159.58,159.56,5.4]
[1749706882214,13.78877074,159.57,159.56,5.4]
[1749706888705,32.72274274,159.57,159.56,5.4]
[1749706889429,37.73621645,159.57,159.56,5.4]
[1749706889813,32.72274274,159.57,159.56,5.4]
[1749706890439,0.28432314,159.56,159.49,39.22877074]
[1749706890618,13.78877074,159.52,159.48,5.4]
[1749706890802,13.78877074,159.52,159.48,19.18877074]
[1749706891008,13.78877074,159.52,159.48,44.62877074]
[1749706891944,13.78877074,159.52,159.48,5.4]
[1749706892108,13.78877074,159.52,159.48,30.84]
[1749706892416,13.78877074,159.51,159.48,5.4]
[1749706893007,13.78877074,159.5,159.48,5.4]
[1749706893947,13.78877074,159.49,159.48,5.4]
[1749706896113,44.80383868,159.52,159.48,5.4]
[1749706896322,13.78877074,159.49,159.48,5.4]
[1749706900323,0.28432314,159.52,159.48,5.4]
[1749706900529,13.78877074,159.49,159.48,5.4]
[1749706901758,0.28432314,159.52,159.48,5.4]
[1749706902048,13.78877074,159.49,159.48,5.4]
[1749706903340,0.28432314,159.52,159.48,5.4]
[1749706903548,13.78877074,159.5,159.48,5.4]
[1749706904639,13.78877074,159.49,159.48,5.4]
[1749706904936,13.78877074,159.53,159.48,19.18877074]
[1749706905136,39.78877074,159.53,159.49,39.24877074]
[1749706905639,13.78877074,159.54,159.5,13.78877074]
[1749706906034,26.0,159.55,159.5,13.78877074]
[1749706906349,13.78877074,159.54,159.49,39.24877074]
[1749706908156,26.0,159.55,159.49,25.46]
[1749706908365,13.78877074,159.54,159.49,39.24877074]
[1749706909025,13.78877074,159.53,159.49,25.46]
[1749706909960,13.78877074,159.52,159.49,25.46]
[1749706910345,13.78877074,159.5,159.48,5.4]
[1749706910658,13.78877074,159.49,159.48,5.4]
[1749706914144,13.78877074,159.5,159.48,5.4]
[1749706914331,13.78877074,159.49,159.48,5.4]
[1749706923349,14.07309388,159.49,159.48,5.4]
[1749706923555,19.08908234,159.49,159.48,5.4]
[1749706924157,14.07309388,159.49,159.48,5.4]
[1749706926167,19.08908234,159.49,159.48,5.4]
[1749706926349,32.72274274,159.49,159.48,5.4]
[1749706926548,14.07309388,159.49,159.48,5.4]
[1749706926754,13.78877074,159.49,159.48,5.4]
[1749706929690,26.0,159.49,159.48,5.4]
[1749706929849,39.78877074,159.49,159.48,5.4]
[1749706933269,13.78877074,159.49,159.48,5.4]
[1749706933575,39.78877074,159.49,159.48,5.4]
[1749706935081,26.0,159.49,159.48,5.4]
[1749706935385,39.78877074,159.49,159.48,5.4]
[1749706935786,26.0,159.49,159.48,5.4]
[1749706936293,39.78877074,159.49,159.48,5.4]
[1749706940594,26.0,159.49,159.48,5.4]
[1749706940893,39.78877074,159.49,159.48,5.4]
[1749706943204,26.0,159.46,159.4,18.64964886]
[1749706943492,26.0,159.46,159.43,5.4]
[1749706944066,5.01587395,159.5,159.43,5.4]
[1749706944067,26.0,159.47,159.43,5.4]
[1749706944598,13.78877074,159.44,159.43,5.4]
[1749706947490,26.0,159.44,159.43,5.4]
[1749706947691,39.78877074,159.46,159.43,5.4]
[1749706948282,13.78877074,159.45,159.43,5.4]
[1749706948890,53.57754148,159.44,159.41,5.4]
[1749706949103,39.78877074,159.42,159.41,5.4]
[1749706954278,13.78877074,159.42,159.41,5.4]
[1749706954732,27.504,159.45,159.41,5.4]
[1749706954890,13.78877074,159.42,159.41,5.4]
[1749706955622,13.78877074,159.43,159.41,5.4]
[1749706956703,26.0,159.45,159.41,5.4]
[1749706957010,13.78877074,159.42,159.41,5.4]
[1749706964132,39.78877074,159.42,159.41,5.4]
[1749706965917,26.0,159.42,159.41,5.4]
[1749706966117,39.78877074,159.42,159.41,5.4]
[1749706978249,13.78877074,159.42,159.41,5.4]
[1749706978458,14.07309388,159.42,159.41,5.4]
[1749706979635,26.0,159.42,159.41,5.4]
[1749706979842,39.78877074,159.42,159.41,5.4]
[1749706980446,26.0,159.42,159.41,5.4]
[1749706980646,39.78877074,159.42,159.41,5.4]
[1749706982846,40.07309388,159.42,159.41,5.4]
[1749706983750,26.0,159.38,159.35,5.6]
[1749706983960,13.78877074,159.36,159.35,5.6]
[1749706987167,13.78877074,159.37,159.35,5.6]
[1749706987372,13.78877074,159.38,159.35,5.6]
[1749706987532,13.78877074,159.37,159.35,5.6]
[1749706988355,13.78877074,159.38,159.35,5.6]
[1749706990267,26.0,159.4,159.35,5.6]
[1749706990551,13.78877074,159.38,159.35,5.6]
[1749706992463,39.78877074,159.4,159.35,19.38877074]
[1749706992834,39.78877074,159.4,159.35,5.6]
[1749706993036,13.78877074,159.39,159.35,5.6]
[1749706994262,26.0,159.38,159.35,5.6]
[1749706994435,26.0,159.38,159.36,13.78877074]
[1749706994636,26.0,159.38,159.37,25.68]
[1749706995443,39.78877074,159.4,159.37,25.68]
[1749706995658,13.78877074,159.39,159.37,25.68]
[1749706997270,13.78877074,159.38,159.37,25.68]
[1749706997570,13.78877074,159.39,159.37,25.68]
[1749706997868,26.0,159.38,159.37,25.68]
[1749707001582,26.0,159.4,159.37,25.68]
[1749707001781,13.78877074,159.39,159.37,25.68]
[1749707002482,26.0,159.4,159.38,5.52]
[1749707002668,13.78877074,159.39,159.38,5.52]
[1749707003053,26.0,159.4,159.38,5.52]
[1749707003256,39.78877074,159.4,159.38,5.52]
[1749707005584,26.0,159.4,159.38,19.30877074]
[1749707005788,30.66254436,159.45,159.38,19.30877074]
[1749707005964,26.0,159.42,159.39,13.78877074]
[1749707007682,26.0,159.45,159.41,13.78877074]
[1749707007892,156.6439,159.48,159.42,39.48877074]
[1749707007893,13.78877074,159.46,159.42,39.48877074]
[1749707008073,26.0,159.45,159.42,25.7]
[1749707008266,13.78877074,159.45,159.42,25.7]
[1749707009091,13.78877074,159.44,159.42,25.7]
[1749707009980,13.78877074,159.43,159.42,25.7]
[1749707018301,13.78877074,159.44,159.42,25.7]
[1749707018502,13.78877074,159.43,159.42,25.7]
[1749707020102,13.78877074,159.44,159.42,25.7]
[1749707020272,39.78877074,159.44,159.42,25.7]
[1749707020596,26.0,159.44,159.42,25.7]
[1749707020807,39.78877074,159.44,159.42,25.7]
[1749707021973,26.0,159.44,159.42,25.7]
[1749707022394,26.0,159.41,159.29,18.81]
[1749707022596,39.78877074,159.3,159.18,13.78877074]
[1749707022774,26.0,159.26,159.14,25.98]
[1749707022969,13.78877074,159.21,159.15,13.78877074]
[1749707023181,26.0,159.25,159.16,13.78877074]
[1749707023477,13.78877074,159.23,159.17,13.78877074]
[1749707023982,13.78877074,159.23,159.18,31.64]
[1749707024802,26.0,159.25,159.18,31.64]
[1749707024973,13.78877074,159.21,159.18,31.64]
[1749707025397,13.78877074,159.22,159.18,31.64]
[1749707026877,34.91140849,159.31,159.18,31.64]
[1749707026878,34.91140849,159.31,159.2,13.78877074]
[1749707027179,7.99665493,159.33,159.21,18.64964886]
[1749707027180,13.78877074,159.26,159.21,18.64964886]
[1749707027380,13.78877074,159.26,159.22,26.1]
[1749707027693,26.0,159.29,159.22,26.1]
[1749707027899,13.78877074,159.25,159.22,26.1]
[1749707028491,13.78877074,159.25,159.16,32.0514]
[1749707028492,26.0,159.16,158.96,37.41640326]
[1749707028696,12.49349595,159.15,158.99,10.0]
[1749707028893,13.78877074,159.11,159.06,13.78877074]
[1749707029093,4.6401951,159.1,159.06,13.78877074]
[1749707029281,13.78877074,159.11,159.05,13.78877074]
[1749707029597,4.640262,159.1,159.05,13.78877074]
[1749707029898,13.78877074,159.11,159.06,32.56]
[1749707030398,13.78877074,159.1,159.06,32.56]
[1749707030597,13.78877074,159.09,159.06,32.56]
[1749707030804,13.78877074,159.1,159.06,32.56]
[1749707032278,13.78877074,159.12,159.06,46.34877074]
[1749707032484,39.78877074,159.15,159.1,13.78877074]
[1749707032799,13.78877074,159.14,159.11,26.68]
[1749707033581,26.0,159.15,159.11,26.68]
[1749707033802,13.78877074,159.13,159.11,26.68]
[1749707034102,1.5157,159.1,158.99,6.24]
[1749707034402,13.78877074,159.07,159.01,13.78877074]
[1749707035077,13.78877074,159.07,159.02,40.84877074]
[1749707035283,13.78877074,159.09,159.03,13.78877074]
[1749707035492,13.78877074,159.1,159.02,27.06]
[1749707035698,13.78877074,159.11,159.06,13.78877074]
[1749707035893,13.78877074,159.11,159.06,40.82877074]
[1749707036116,13.78877074,159.1,159.06,27.04]
[1749707036501,13.78877074,159.1,159.03,18.64964886]
[1749707036502,13.78877074,159.1,159.07,33.28]
[1749707036704,13.78877074,159.11,159.07,33.28]
[1749707037202,13.78877074,159.1,159.07,33.28]
[1749707038284,13.78877074,159.08,159.07,33.28]
[1749707038610,26.0,159.11,159.07,33.28]
[1749707038611,13.78877074,159.09,159.07,33.28]
[1749707039312,13.78877074,159.08,159.07,33.28]
[1749707039903,13.78877074,159.08,159.03,13.78877074]
[1749707040107,13.78877074,159.08,159.07,6.26]
[1749707040309,13.78877074,159.08,159.03,13.78877074]
[1749707040515,13.78877074,159.08,159.04,33.26]
[1749707043027,26.0,159.05,159.04,33.26]
[1749707044194,26.0,159.06,159.04,47.04877074]
[1749707045519,26.0,159.08,159.04,33.26]
[1749707045719,26.0,159.07,159.05,13.78877074]
[1749707047217,13.78877074,159.09,159.05,13.78877074]
[1749707047600,13.78877074,159.1,159.04,33.26]
[1749707047799,13.78877074,159.1,159.05,13.78877074]
[1749707047998,13.78877074,159.09,159.04,33.26]
[1749707048207,13.78877074,159.09,159.05,13.78877074]
[1749707048923,39.78877074,159.11,159.06,13.78877074]
[1749707049118,13.78877074,159.1,159.07,26.88]
[1749707050317,26.0,159.11,159.07,26.88]
[1749707050521,13.78877074,159.1,159.07,26.88]
[1749707050705,39.78877074,159.11,159.07,26.88]
[1749707053814,26.0,159.11,159.07,26.88]
[1749707055614,39.78877074,159.11,159.07,26.88]
[1749707055810,13.78877074,159.12,159.07,26.88]
[1749707056014,13.78877074,159.13,159.07,26.88]
[1749707056220,13.78877074,159.12,159.07,26.88]
[1749707056726,13.78877074,159.12,159.07,40.66877074]
[1749707057104,13.78877074,159.12,159.07,26.88]
[1749707057301,13.78877074,159.12,159.07,40.66877074]
[1749707057631,13.78877074,159.12,159.08,13.78877074]
[1749707057823,13.78877074,159.12,159.07,40.66877074]
[1749707058031,13.78877074,159.11,159.07,26.88]
[1749707058926,26.0,159.14,159.07,26.88]
[1749707059118,13.78877074,159.11,159.07,26.88]
[1749707060830,26.0,159.14,159.1,13.78877074]
[1749707061141,39.78877074,159.14,159.11,26.74]
[1749707061338,26.0,159.17,159.11,26.74]
[1749707061532,13.78877074,159.14,159.11,26.74]
[1749707062554,13.78877074,159.15,159.11,26.74]
[1749707063148,13.78877074,159.14,159.11,26.74]
[1749707063540,13.78877074,159.13,159.11,26.74]
[1749707064160,26.0,159.16,159.11,26.74]
[1749707064161,13.78877074,159.14,159.11,26.74]
[1749707064966,26.0,159.16,159.11,26.74]
[1749707065266,13.78877074,159.12,159.11,26.74]
[1749707065865,26.0,159.16,159.11,26.74]
[1749707066186,13.78877074,159.12,159.11,26.74]
[1749707066353,6.91550707,159.12,159.11,26.74]
[1749707066556,11.56552905,159.12,159.11,26.74]
[1749707066734,4.59053048,159.12,159.11,26.74]
[1749707066934,11.56549178,159.12,159.11,26.74]
[1749707067161,6.91551758,159.12,159.11,26.74]
[1749707067366,9.24050468,159.12,159.11,26.74]
[1749707067555,6.91557989,159.12,159.11,26.74]
[1749707067741,4.59053048,159.12,159.11,26.74]
[1749707068062,6.91548098,159.12,159.11,26.74]
[1749707068270,6.91549938,159.12,159.11,26.74]
[1749707068561,17.3494162,159.12,159.11,26.74]
[1749707069070,17.34939629,159.12,159.11,26.74]
[1749707069365,15.02446981,159.12,159.11,26.74]
[1749707069539,12.69968878,159.12,159.11,26.74]
[1749707069741,17.35045918,159.12,159.11,26.74]
[1749707069947,17.35069023,159.12,159.11,32.86]
[1749707070364,9.24132643,159.12,159.11,6.12]
[1749707070565,11.56689508,159.12,159.11,6.12]
[1749707070757,4.59053048,159.12,159.11,6.12]
[1749707070962,11.56724272,159.12,159.11,6.12]
[1749707071244,4.59053048,159.12,159.11,6.12]
[1749707071664,9.24214693,159.12,159.11,32.74]
[1749707071975,11.56803309,159.12,159.11,32.74]
[1749707072171,6.91637737,159.12,159.11,32.74]
[1749707072349,12.72411763,159.12,159.11,32.74]
[1749707072547,17.37118821,159.12,159.11,32.74]
[1749707072746,12.72411932,159.12,159.11,32.74]
[1749707072969,10.40058488,159.12,159.11,32.74]
[1749707073352,6.9141038,159.12,159.11,32.74]
[1749707073848,6.91408625,159.12,159.11,32.74]
[1749707074176,20.70285699,159.12,159.11,32.74]
[1749707074355,18.37930122,159.12,159.11,6.12]
[1749707074762,20.70269491,159.12,159.11,6.12]
[1749707075074,20.70269564,159.12,159.11,6.12]
[1749707075264,20.70267315,159.12,159.11,6.12]
[1749707075464,20.70265901,159.12,159.11,6.12]
[1749707076057,20.70267655,159.12,159.11,6.12]
[1749707076379,20.70267494,159.12,159.11,6.12]
[1749707076560,18.37930122,159.12,159.11,6.12]
[1749707076760,32.91391198,159.12,159.11,6.12]
[1749707076963,46.70272954,159.12,159.11,6.12]
[1749707077175,46.70273228,159.12,159.11,6.12]
[1749707077476,44.37930122,159.12,159.11,6.12]
[1749707077782,6.91391834,159.12,159.11,6.12]
[1749707077984,4.59053048,159.12,159.11,6.12]
[1749707078161,6.9139206,159.12,159.11,6.12]
[1749707078895,6.9138895,159.12,159.11,6.12]
[1749707079084,4.59053048,159.12,159.11,6.12]
[1749707079286,6.9138895,159.12,159.11,6.12]
[1749707079598,6.91390938,159.12,159.11,6.12]
[1749707079752,2.32335902,159.12,159.11,6.12]
[1749707079956,26.0,159.13,159.11,6.12]
[1749707080181,2.32325069,159.12,159.11,6.12]
[1749707080559,26.0,159.15,159.11,6.12]
[1749707080560,4.64938367,159.14,159.11,6.12]
[1749707080759,2.32341021,159.13,159.11,6.12]
[1749707080957,2.32344359,159.12,159.11,6.12]
[1749707081190,4.64955677,159.14,159.11,6.12]
[1749707081374,30.6498872,159.16,159.11,6.12]
[1749707081581,13.78877074,159.13,159.11,6.12]
[1749707082157,13.78877074,159.12,159.11,6.12]
[1749707085696,26.0,159.17,159.11,6.12]
[1749707085875,13.78877074,159.15,159.11,19.90877074]
[1749707086192,13.78877074,159.16,159.11,19.90877074]
[1749707086374,13.78877074,159.15,159.11,19.90877074]
[1749707086893,13.78877074,159.15,159.11,6.12]
[1749707087064,26.0,159.17,159.11,6.12]
[1749707087269,13.78877074,159.14,159.11,6.12]
[1749707088085,13.78877074,159.15,159.11,6.12]
[1749707088772,13.78877074,159.16,159.11,19.90877074]
[1749707089091,39.78877074,159.17,159.12,13.78877074]
[1749707089398,13.78877074,159.16,159.13,26.46]
[1749707096325,13.78877074,159.15,159.13,26.46]
[1749707096805,26.0,159.17,159.13,26.46]
[1749707097010,13.78877074,159.15,159.13,26.46]
[1749707097313,26.0,159.17,159.13,40.24877074]
[1749707097314,39.78877074,159.17,159.13,40.24877074]
[1749707097525,39.78877074,159.17,159.13,26.46]
[1749707097526,13.78877074,159.16,159.13,26.46]
[1749707098498,1.5004,159.19,159.13,26.46]
[1749707098789,13.78877074,159.16,159.13,26.46]
[1749707099733,13.78877074,159.17,159.13,40.24877074]
[1749707100110,13.78877074,159.17,159.13,26.46]
[1749707100702,12.55114873,159.23,159.15,13.78877074]
[1749707100703,8.11337119,159.23,159.15,13.78877074]
[1749707101018,13.78877074,159.21,159.16,40.14877074]
[1749707101201,13.78877074,159.2,159.16,40.14877074]
[1749707101602,13.78877074,159.19,159.16,26.36]
[1749707102428,27.6566,159.23,159.16,26.36]
[1749707102429,13.78877074,159.18,159.16,26.36]
[1749707103634,13.78877074,159.19,159.16,26.36]
[1749707103817,13.78877074,159.2,159.16,26.36]
[1749707104428,13.78877074,159.2,159.16,40.14877074]
[1749707104935,39.78877074,159.21,159.16,40.14877074]
[1749707105138,26.0,159.21,159.17,13.78877074]
[1749707105510,39.78877074,159.21,159.17,13.78877074]
[1749707105710,39.78877074,159.21,159.16,40.14877074]
[1749707107506,13.78877074,159.2,159.16,40.14877074]
[1749707107712,13.78877074,159.21,159.16,40.14877074]
[1749707110238,13.78877074,159.21,159.17,18.64964886]
[1749707112434,27.6566,159.23,159.17,18.64964886]
[1749707112617,13.78877074,159.21,159.17,18.64964886]
[1749707113139,27.6566,159.23,159.17,18.64964886]
[1749707113343,13.78877074,159.21,159.17,18.64964886]
[1749707116956,13.78877074,159.21,159.17,32.4384196]
[1749707117152,13.78877074,159.21,159.17,18.64964886]
[1749707117337,13.78877074,159.2,159.16,26.36]
[1749707117536,13.78877074,159.18,159.17,26.22]
[1749707118053,13.78877074,159.2,159.17,26.22]
[1749707118235,13.78877074,159.2,159.18,5.94]
[1749707121037,13.78877074,159.21,159.18,5.94]
[1749707123254,27.6566,159.23,159.18,5.94]
[1749707123466,13.78877074,159.24,159.19,18.64964886]
[1749707123755,13.78877074,159.24,159.2,26.18]
[1749707123954,13.78877074,159.23,159.2,26.18]
[1749707126937,26.0,159.26,159.2,26.18]
[1749707127329,13.78877074,159.24,159.2,39.96877074]
[1749707127648,13.78877074,159.24,159.2,26.18]
[1749707130754,26.0,159.26,159.2,39.96877074]
[1749707130755,26.0,159.25,159.2,39.96877074]
[1749707130945,13.78877074,159.24,159.2,39.96877074]
[1749707134377,26.0,159.22,159.21,18.64964886]
[1749707134569,13.78877074,159.25,159.21,18.64964886]
[1749707134863,26.0,159.22,159.21,18.64964886]
[1749707137666,39.78877074,159.25,159.21,18.64964886]
[1749707137866,39.78877074,159.25,159.22,26.08]
[1749707142185,39.78877074,159.25,159.23,5.8]
[1749707142486,13.78877074,159.24,159.23,5.8]
[1749707143283,34.87724539,159.25,159.23,5.8]
[1749707145273,8.87724539,159.25,159.23,5.8]
[1749707145491,8.87724539,159.26,159.23,5.8]
[1749707145868,8.87724539,159.25,159.23,5.8]
[1749707146790,8.87724539,159.24,159.23,5.8]
[1749707149207,8.87724539,159.25,159.23,5.8]
[1749707150685,8.87724539,159.24,159.23,5.8]
[1749707152899,8.87724539,159.25,159.23,5.8]
[1749707155200,8.87724539,159.24,159.18,18.64964886]
[1749707155397,69.32518156,159.28,159.19,31.76]
[1749707155707,8.87724539,159.22,159.19,31.76]
[1749707157584,8.87724539,159.23,159.19,31.76]
[1749707158788,69.32518156,159.28,159.19,31.76]
[1749707158995,8.87724539,159.23,159.19,31.76]
[1749707162198,8.87724539,159.22,159.19,5.8]
[1749707162507,8.87724539,159.22,159.2,25.92]
[1749707163888,8.87724539,159.22,159.19,5.8]
[1749707164088,8.87724539,159.23,159.2,25.9]
[1749707171210,26.0,159.25,159.2,25.9]
[1749707171899,8.87724539,159.23,159.2,25.9]
[1749707176718,8.87724539,159.23,159.19,5.8]
[1749707177014,8.87724539,159.22,159.2,25.82]
[1749707177808,8.87724539,159.21,159.19,5.8]
[1749707178021,8.87724539,159.2,159.19,5.8]
[1749707178219,8.87724539,159.21,159.19,31.62]
[1749707179322,8.87724539,159.21,159.17,18.64964886]
[1749707179525,8.87724539,159.21,159.2,5.68]
[1749707180614,8.87724539,159.21,159.2,31.48]
[1749707185021,8.87724539,159.22,159.2,31.48]
[1749707185328,8.87724539,159.23,159.2,31.48]
[1749707185532,8.87724539,159.22,159.2,31.48]
[1749707188955,26.0,159.25,159.2,31.48]
[1749707189164,1.5649,159.26,159.2,31.48]
[1749707189452,8.87724539,159.26,159.22,8.87724539]
[1749707189655,26.0,159.23,159.22,18.64964886]
[1749707189855,26.0,159.23,159.22,44.42964886]
[1749707190960,26.0,159.23,159.22,25.78]
[1749707191346,34.87724539,159.23,159.22,25.78]
[1749707191757,34.87724539,159.23,159.22,31.36]
[1749707197450,26.0,159.25,159.22,31.36]
[1749707197759,8.87724539,159.23,159.22,31.36]
[1749707201778,26.0,159.25,159.22,31.36]
[1749707202078,8.87724539,159.23,159.22,31.36]
[1749707202970,26.0,159.25,159.22,31.36]
[1749707203182,8.87724539,159.23,159.22,31.36]
[1749707205585,26.0,159.25,159.22,31.36]
[1749707205759,34.87724539,159.25,159.22,31.36]
[1749707207971,8.87724539,159.26,159.22,31.36]
[1749707208172,26.0,159.23,159.22,50.00964886]
[1749707209397,8.87724539,159.27,159.23,18.64964886]
[1749707209685,8.87724539,159.28,159.24,25.7]
[1749707209881,26.0,159.27,159.24,25.7]
[1749707210653,8.87724539,159.28,159.24,25.7]
[1749707210873,26.0,159.27,159.24,25.7]
[1749707212754,8.87724539,159.27,159.24,25.7]
[1749707214483,26.0,159.28,159.24,25.7]
[1749707214779,26.0,159.26,159.24,34.57724539]
[1749707216884,26.0,159.27,159.25,27.52689425]
[1749707217066,26.0,159.27,159.26,53.22689425]
[1749707217657,26.0,159.27,159.26,44.34964886]
[1749707218872,8.87724539,159.28,159.26,44.34964886]
[1749707219570,26.0,159.29,159.27,18.64964886]
[1749707219770,34.87724539,159.31,159.28,25.7]
[1749707221362,8.87724539,159.32,159.29,18.64964886]
[1749707221565,8.87724539,159.32,159.3,25.7]
[1749707221865,34.87724539,159.32,159.31,5.54]
[1749707222990,26.0,159.32,159.31,5.54]
[1749707223183,34.87724539,159.32,159.31,5.54]
[1749707229181,8.87724539,159.32,159.31,5.54]
[1749707232677,8.87724539,159.32,159.31,5.54]
[1749707235501,8.87724539,159.32,159.31,31.24]
[1749707235695,8.87724539,159.33,159.31,31.24]
[1749707239708,26.0,159.34,159.31,31.24]
[1749707240003,8.87724539,159.33,159.31,31.24]
[1749707243107,8.87724539,159.32,159.31,31.24]
[1749707243286,8.87724539,159.33,159.31,31.24]
[1749707243486,34.87724539,159.34,159.31,31.24]
[1749707243689,26.0,159.34,159.31,31.24]
[1749707243911,190.64194539,159.37,159.33,8.87724539]
[1749707244101,26.0,159.37,159.34,25.7]
[1749707244412,34.87724539,159.37,159.34,25.7]
[1749707244711,8.87724539,159.36,159.34,25.7]
[1749707246293,26.0,159.37,159.34,25.7]
[1749707246493,8.87724539,159.36,159.34,25.7]
[1749707248019,8.87724539,159.35,159.34,25.7]
[1749707250698,26.0,159.37,159.34,25.7]
[1749707250896,8.87724539,159.35,159.34,25.7]
[1749707252797,8.87724539,159.35,159.34,31.24]
[1749707253102,26.0,159.35,159.34,5.54]
[1749707253307,39.54895555,159.35,159.34,5.54]
[1749707254128,30.67171016,159.35,159.34,5.54]
[1749707254298,39.54895555,159.35,159.34,5.54]
[1749707256099,41.89325127,159.35,159.34,5.54]
[1749707256299,41.89323786,159.35,159.34,5.54]
[1749707256596,39.54895555,159.35,159.34,5.54]
[1749707256794,41.89323787,159.35,159.34,5.54]
[1749707256997,41.89322514,159.35,159.34,5.54]
[1749707257215,39.54895555,159.35,159.34,5.54]
[1749707257652,41.8932218,159.35,159.34,5.54]
[1749707258134,33.01597641,159.35,159.34,5.54]
[1749707258430,41.89298203,159.35,159.34,5.54]
[1749707258724,41.89295039,159.35,159.34,5.54]
[1749707258922,41.8929638,159.35,159.34,5.54]
[1749707259106,39.54895555,159.35,159.34,5.54]
[1749707259627,41.89303155,159.35,159.34,5.54]
[1749707259923,41.8930392,159.35,159.34,5.54]
[1749707260323,41.89299139,159.35,159.34,5.54]
[1749707260513,39.54895555,159.35,159.34,5.54]
[1749707260912,41.89298187,159.35,159.34,5.54]
[1749707261115,39.54895555,159.35,159.34,5.54]
[1749707261299,41.89295504,159.35,159.34,5.54]
[1749707261698,39.54895555,159.35,159.34,5.54]
[1749707261904,41.89295504,159.35,159.34,5.54]
[1749707262609,41.89221355,159.35,159.34,5.54]
[1749707263000,41.89201409,159.35,159.34,5.54]
[1749707263198,39.54895555,159.35,159.34,5.54]
[1749707263411,33.01451894,159.35,159.34,5.54]
[1749707263697,39.54895555,159.35,159.34,5.54]